Workbook

Sheet Calculations
A1: Underlying | E1: Option 1 | F1: Option 2 | G1: Option 3 | H1: Option 4 | N1: Call | O1: Long
A2: Ulg Price | B2: 80 | D2: OptionType | N2: Put | O2: Short
A3: Position | D3: Position | M3: #1 | N3: 2 | O3: 1
A4: r | B4: 0.3 | D4: Vol | E4: 0.2 | F4: 0.3 | G4: 0.4 | H4: 0.5 | M4: #2 | N4: 2 | O4: 1
A5: ulgs/contract | B5: 100 | D5: r | E5: 0.03 | F5: 0.04 | G5: 0.05 | H5: 0.06 | M5: #3 | N5: 2 | O5: 2
D6: Strike | E6: 95 | F6: 100 | G6: 105 | H6: 110 | M6: #4 | N6: 2 | O6: 2
D7: # of Options | E7: 1 | F7: 1 | G7: 1 | H7: 1 | M7: UL | O7: 2
B8: OPTION 1 | Q8: STRATEGY SUM
G9: Maturity (T) | V9: Maturity (T)
A10: ulg Price (S) | B10: 0 | C10: 0.1 | D10: 0.2 | E10: 0.3 | F10: 0.4 | G10: 0.5 | H10: 0.6 | I10: 0.7 | J10: 0.8 | K10: 0.9 | L10: 1 | P10: ulg Price (S) | Q10: 0 | R10: 0.1 | S10: 0.2 | T10: 0.3 | U10: 0.4 | V10: 0.5 | W10: 0.6 | X10: 0.7 | Y10: 0.8 | Z10: 0.9 | AA10: 1
A11: =$B$2*0.5 -> 40 | B11: =$B$5*GBlackScholes($N$3,$A11,$E$6,B$10,$E$5,$E$5,$E$4,$O$3)*$E$7 -> 5500 | C11: 5471.542707 | D11: 5443.170659 | E11: 5414.883598 | F11: 5386.681272 | G11: 5358.563426 | H11: 5330.529811 | I11: 5302.580206 | J11: 5274.714519 | K11: 5246.93299 | L11: 5219.23649 | P11: =$B$2*0.5 -> 40 | Q11: =(B11+B35+B59+B83) + Q35 -> -2040 | R11: =(C11+C35+C59+C83) + R35 -> -1991.424217 | S11: =(D11+D35+D59+D83) + S35 -> -1943.296936 | T11: =(E11+E35+E59+E83) + T35 -> -1895.677356 | U11: =(F11+F35+F59+F83) + U35 -> -1848.913888 | V11: =(G11+G35+G59+G83) + V35 -> -1803.661198 | W11: =(H11+H35+H59+H83) + W35 -> -1760.597673 | X11: =(I11+I35+I59+I83) + X35 -> -1720.224412 | Y11: =(J11+J35+J59+J83) + Y35 -> -1682.819681 | Z11: =(K11+K35+K59+K83) + Z35 -> -1648.472389 | AA11: =(L11+L35+L59+L83) + AA35 -> -1617.135991
A12: =$B$2*0.55 -> 44 | B12: 5100 | C12: 5071.542707 | D12: 5043.170659 | E12: 5014.883598 | F12: 4986.681272 | G12: 4958.563434 | H12: 4930.529923 | I12: 4902.581003 | J12: 4874.718047 | K12: 4846.944344 | L12: 4819.265654 | P12: =$B$2*0.55 -> 44 | Q12: -2044 | R12: -1995.546036 | S12: -1947.552303 | T12: -1900.262766 | U12: -1854.574651 | V12: -1811.646388 | W12: -1772.32803 | X12: -1737.021251 | Y12: -1705.772339 | Z12: -1678.404393 | AA12: -1654.62195
A13: =$B$2*0.6 -> 48 | B13: 4700 | C13: 4671.542707 | D13: 4643.170659 | E13: 4614.883598 | F13: 4586.681281 | G13: 4558.563644 | H13: 4530.531769 | I13: 4502.589908 | J13: 4474.747447 | K13: 4447.019529 | L13: 4419.426194 | P13: =$B$2*0.6 -> 48 | Q13: -2048 | R13: -1999.667873 | S13: -1951.842673 | T13: -1905.30664 | U13: -1861.905301 | V13: -1823.220368 | W13: -1789.940406 | X13: -1762.050814 | Y13: -1739.15188 | Z13: -1720.683419 | AA13: -1706.051129
A14: =$B$2*0.65 -> 52 | B14: 4300 | C14: 4271.542707 | D14: 4243.170659 | E14: 4214.883602 | F14: 4186.681536 | G14: 4158.566922 | H14: 4130.550281 | I14: 4102.654813 | J14: 4074.915795 | K14: 4047.375958 | L14: 4020.079989 | P14: =$B$2*0.65 -> 52 | Q14: -2052 | R14: -2003.789977 | S14: -1956.269203 | T14: -1911.480857 | U14: -1872.457666 | V14: -1840.692939 | W14: -1816.164762 | X14: -1798.108899 | Y14: -1785.532997 | Z14: -1777.459373 | AA14: -1773.018276
A15: =$B$2*0.7 -> 56 | B15: 3900 | C15: 3871.542707 | D15: 3843.170659 | E15: 3814.883762 | F15: 3786.685775 | G15: 3758.598605 | H15: 3730.674441 | I15: 3702.98942 | J15: 3675.627248 | K15: 3648.665267 | L15: 3622.166879 | P15: =$B$2*0.7 -> 56 | Q15: -2056 | R15: -2007.91464 | S15: -1961.125205 | T15: -1920.053314 | U15: -1888.493222 | V15: -1866.840923 | W15: -1853.773867 | X15: -1847.576148 | Y15: -1846.661788 | Z15: -1849.716637 | AA15: -1855.700176
A16: =$B$2*0.75 -> 60 | B16: 3500 | C16: 3471.542707 | D16: 3443.170683 | E16: 3414.887141 | F16: 3386.728872 | G16: 3358.804799 | H16: 3331.272761 | I16: 3304.287952 | J16: 3277.971651 | K16: 3252.403458 | L16: 3227.625765 | P16: =$B$2*0.75 -> 60 | Q16: -2060 | R16: -2012.056667 | S16: -1967.115686 | T16: -1933.065524 | U16: -1912.822026 | V16: -1904.437128 | W16: -1904.937532 | X16: -1911.718586 | Y16: -1922.788788 | Z16: -1936.695807 | AA16: -1952.399049
A17: =$B$2*0.8 -> 64 | B17: 3100 | C17: 3071.542707 | D17: 3043.171657 | E17: 3014.928794 | F17: 2987.020153 | G17: 2959.771592 | H17: 2933.465326 | I17: 2908.272175 | J17: 2884.261715 | K17: 2861.433298 | L17: 2839.743948 | P17: =$B$2*0.8 -> 64 | Q17: -2064 | R17: -2016.2877 | S17: -1975.657546 | T17: -1953.282013 | U17: -1948.270642 | V17: -1955.445327 | W17: -1970.351942 | X17: -1989.8936 | Y17: -2012.034015 | Z17: -2035.454463 | AA17: -2059.304201
A18: =$B$2*0.85 -> 68 | B18: 2700 | C18: 2671.542715 | D18: 2643.191568 | E18: 2615.255111 | F18: 2588.419077 | G18: 2563.218313 | H18: 2539.859269 | I18: 2518.324321 | J18: 2498.485798 | K18: 2480.175238 | L18: 2463.218604 | P18: =$B$2*0.85 -> 68 | Q18: -2068 | R18: -2020.878239 | S18: -1989.100628 | T18: -1983.659291 | U18: -1996.650214 | V18: -2019.889269 | W18: -2048.271049 | X18: -2078.865052 | Y18: -2110.012076 | Z18: -2140.775997 | AA18: -2170.635337
A19: =$B$2*0.9 -> 72 | B19: 2300 | C19: 2271.543507 | D19: 2243.421843 | E19: 2216.999373 | F19: 2193.458741 | G19: 2172.980753 | H19: 2155.255791 | I19: 2139.854016 | J19: 2126.366556 | K19: 2114.444872 | L19: 2103.803714 | P19: =$B$2*0.9 -> 72 | Q19: -2072 | R19: -2026.632196 | S19: -2010.469864 | T19: -2026.02158 | U19: -2057.209313 | V19: -2094.631175 | W19: -2133.790118 | X19: -2172.568713 | Y19: -2209.97985 | Z19: -2245.588047 | AA19: -2279.234487
A20: =$B$2*0.95 -> 76 | B20: 1900 | C20: 1871.576561 | D20: 1845.064525 | E20: 1823.745176 | F20: 1807.701149 | G20: 1795.759853 | H20: 1786.815668 | I20: 1780.039182 | J20: 1774.837723 | K20: 1770.789625 | L20: 1767.592116 | P20: =$B$2*0.95 -> 76 | Q20: -2076 | R20: -2035.360948 | S20: -2041.979765 | T20: -2078.796937 | U20: -2124.997921 | V20: -2172.654023 | W20: -2218.87229 | X20: -2262.626838 | Y20: -2303.62555 | Z20: -2341.876069 | AA20: -2377.507438
A21: =$B$2*1 -> 80 | B21: =$B$5*GBlackScholes($N$3,$A21,$E$6,B$10,$E$5,$E$5,$E$4,$O$3)*$E$7 -> 1500 | C21: 1472.186482 | D21: 1452.832952 | E21: 1443.575876 | F21: 1440.486217 | G21: 1440.896347 | H21: 1443.302522 | I21: 1446.846609 | J21: 1451.021145 | K21: 1455.515881 | L21: 1460.136108 | P21: =$B$2*1 -> 80 | Q21: -2080 | R21: -2049.597909 | S21: -2081.503999 | T21: -2134.554446 | U21: -2190.187034 | V21: -2243.553059 | W21: -2293.419275 | X21: -2339.625994 | Y21: -2382.352038 | Z21: -2421.873686 | AA21: -2458.480059
A22: =$B$2*1.05 -> 84 | B22: 1100 | C22: 1077.803704 | D22: 1078.742687 | E22: 1089.80168 | F22: 1103.961891 | G22: 1118.829803 | H22: 1133.499519 | I22: 1147.610275 | J22: 1161.025131 | K22: 1173.705987 | L22: 1185.659964 | P22: =$B$2*1.05 -> 84 | Q22: -2084 | R22: -2068.275637 | S22: -2117.967407 | T22: -2179.368816 | U22: -2239.411212 | V22: -2295.470233 | W22: -2347.193111 | X22: -2394.809434 | Y22: -2438.687683 | Z22: -2479.203976 | AA22: -2516.703369
A23: =$B$2*1.1 -> 88 | B23: 699.9999997 | C23: 706.4774297 | D23: 743.0969061 | E23: 778.4527935 | F23: 810.235385 | G23: 838.7087363 | H23: 864.3720411 | I23: 887.6672585 | J23: 908.9505955 | K23: 928.5053027 | L23: 946.5580462 | P23: =$B$2*1.1 -> 88 | Q23: -2088 | R23: -2074.972038 | S23: -2130.374183 | T23: -2195.882309 | U23: -2259.135889 | V23: -2317.877938 | W23: -2371.935977 | X23: -2421.639158 | Y23: -2467.41663 | Z23: -2509.684358 | AA23: -2548.815121
A24: =$B$2*1.15 -> 92 | B24: 299.9999997 | C24: 395.7551917 | D24: 468.1260077 | E24: 522.9789665 | F24: 567.8843093 | G24: 606.1807729 | H24: 639.6811006 | I24: 669.4983823 | J24: 696.3739244 | K24: 720.8307847 | L24: 743.2543392 | P24: =$B$2*1.15 -> 92 | Q24: -2092 | R24: -2031.015504 | S24: -2095.117018 | T24: -2169.3597 | U24: -2239.62599 | V24: -2304.084756 | W24: -2362.937876 | X24: -2416.764143 | Y24: -2466.158447 | Z24: -2511.650117 | AA24: -2553.692099
A25: =$B$2*1.2 -> 96 | B25: 0 | C25: 181.7659372 | D25: 266.9648114 | E25: 329.2640873 | F25: 379.6048487 | G25: 422.2764794 | H25: 459.4916123 | I25: 492.5694213 | J25: 522.3716355 | K25: 549.4979978 | L25: 574.3858752 | P25: =$B$2*1.2 -> 96 | Q25: -1995.999999 | R25: -1898.545473 | S25: -1998.347024 | T25: -2093.306093 | U25: -2177.605129 | V25: -2252.502865 | W25: -2319.598826 | X25: -2380.205365 | Y25: -2435.344473 | Z25: -2485.81369 | AA25: -2532.244335
A26: =$B$2*1.25 -> 100 | B26: 0 | C26: 66.64713617 | D26: 137.0978938 | E26: 194.0305933 | F26: 242.0115269 | G26: 283.6724577 | H26: 320.591431 | I26: 353.7906784 | J26: 383.9744243 | K26: 411.6513519 | L26: 437.2027729 | P26: =$B$2*1.25 -> 100 | Q26: -1599.962152 | R26: -1677.253578 | S26: -1843.4983 | T26: -1971.357477 | U26: -2076.543293 | V26: -2166.394484 | W26: -2244.98706 | X26: -2314.859726 | Y26: -2377.721874 | Z26: -2434.791066 | AA26: -2486.972185
A27: =$B$2*1.3 -> 104 | B27: 0 | C27: 19.30596324 | D27: 63.34262211 | E27: 107.0923183 | F27: 147.3119603 | G27: 183.9759324 | H27: 217.5074013 | I27: 248.3413593 | J27: 276.849974 | K27: 303.3392573 | L27: 328.0594859 | P27: =$B$2*1.3 -> 104 | Q27: -803.9999988 | R27: -1405.879673 | S27: -1648.420187 | T27: -1814.946516 | U27: -1944.879195 | V27: -2052.491066 | W27: -2144.73778 | X27: -2225.600979 | Y27: -2297.605131 | Z27: -2362.468482 | AA27: -2421.423217
A28: =$B$2*1.35 -> 108 | B28: 0 | C28: 4.426615864 | D28: 26.39190868 | E28: 55.47804175 | F28: 85.76895028 | G28: 115.3771204 | H28: 143.6987058 | I28: 170.5756505 | J28: 196.0162795 | K28: 220.0912539 | L28: 242.8917924 | P28: =$B$2*1.35 -> 108 | Q28: -307.9999994 | R28: -1131.192457 | S28: -1436.148517 | T28: -1638.827071 | U28: -1793.338382 | V28: -1919.187555 | W28: -2025.745007 | X28: -2118.283465 | Y28: -2200.089371 | Z28: -2273.364035 | AA28: -2339.663013
A29: =$B$2*1.4 -> 112 | B29: 0 | C29: 0.8111304908 | D29: 9.961194049 | E29: 27.05693148 | F29: 47.87600723 | G29: 70.09820172 | H29: 92.59146644 | I29: 114.7987379 | J29: 136.4453208 | K29: 157.4009237 | L29: 177.6117072 | P29: =$B$2*1.4 -> 112 | Q29: -112 | R29: -884.9822262 | S29: -1226.699417 | T29: -1456.993267 | U29: -1632.502359 | V29: -1774.928077 | W29: -1895.009863 | X29: -1998.877936 | Y29: -2090.377362 | Z29: -2172.088442 | AA29: -2245.833301
A30: =$B$2*1.45 -> 116 | B30: 0 | C30: 0.1204153777 | D30: 3.425455413 | E30: 12.46779724 | F30: 25.68793283 | G30: 41.34306673 | H30: 58.28376486 | I30: 75.80805238 | J30: 93.4901763 | K30: 111.0705942 | L30: 128.3908567 | P30: =$B$2*1.45 -> 116 | Q30: -116 | R30: -681.423092 | S30: -1033.480823 | T30: -1280.340855 | U30: -1471.251406 | V30: -1627.111685 | W30: -1758.834694 | X30: -1872.855409 | Y30: -1973.2942 | Z30: -2062.953526 | AA30: -2143.829933
A31: =$B$2*1.5 -> 120 | B31: 0 | C31: 0.01470712282 | D31: 1.08007782 | E31: 5.449149355 | F31: 13.28451439 | G31: 23.71986223 | H31: 35.90138487 | I31: 49.18786843 | J31: 63.12930742 | K31: 77.41532128 | L31: 91.83227216 | P31: =$B$2*1.5 -> 120 | Q31: -120 | R31: -522.7889854 | S31: -863.4841353 | T31: -1116.063617 | U31: -1316.140072 | V31: -1481.564181 | W31: -1622.392425 | X31: -1744.836422 | Y31: -1852.999166 | Z31: -1949.732873 | AA31: -2037.101831
B32: OPTION 2 | Q32: FORWARD
G33: Maturity (T) | V33: Maturity (T)
A34: ulg Price (S) | B34: 0 | C34: 0.1 | D34: 0.2 | E34: 0.3 | F34: 0.4 | G34: 0.5 | H34: 0.6 | I34: 0.7 | J34: 0.8 | K34: 0.9 | L34: 1 | P34: ulg Price (S) | Q34: 0 | R34: 0.1 | S34: 0.2 | T34: 0.3 | U34: 0.4 | V34: 0.5 | W34: 0.6 | X34: 0.7 | Y34: 0.8 | Z34: 0.9 | AA34: 1
A35: =$B$2*0.5 -> 40 | B35: =$B$5*GBlackScholes($N$4,$A35,$F$6,B$10,$F$5,$F$5,$F$4,$O$4)*$F$7 -> 6000 | C35: 5960.079893 | D35: 5920.319148 | E35: 5880.717132 | F35: 5841.273442 | G35: 5801.990133 | H35: 5762.87783 | I35: 5723.961444 | J35: 5685.280283 | K35: 5646.883219 | L35: 5608.822385 | P35: =$B$2*0.5 -> 40 | Q35: =UnderlyingForward($P35,Q$34,$B$4,$O$7) -> -40.00000001 | R35: -41.21818136 | S35: -42.47346186 | T35: -43.76697135 | U35: -45.09987406 | V35: -46.47336971 | W35: -47.88869452 | X35: -49.3471224 | Y35: -50.84996601 | Z35: -52.39857803 | AA35: -53.9943523
A36: =$B$2*0.55 -> 44 | B36: 5600 | C36: 5560.079893 | D36: 5520.319148 | E36: 5480.717215 | F36: 5441.276151 | G36: 5402.012873 | H36: 5362.97396 | I36: 5324.234667 | J36: 5285.884532 | K36: 5248.011899 | L36: 5210.693648 | P36: =$B$2*0.55 -> 44 | Q36: -44.00000001 | R36: -45.33999949 | S36: -46.72080805 | T36: -48.14366848 | U36: -49.60986147 | V36: -51.12070668 | W36: -52.67756398 | X36: -54.28183464 | Y36: -55.93496261 | Z36: -57.63843583 | AA36: -59.39378753
A37: =$B$2*0.6 -> 48 | B37: 5200 | C37: 5160.079893 | D37: 5120.319153 | E37: 5080.718439 | F37: 5041.296861 | G37: 5002.130036 | H37: 4963.353692 | I37: 4925.12604 | J37: 4887.590852 | K37: 4850.858939 | L37: 4815.00448 | P37: =$B$2*0.6 -> 48 | Q37: -48.00000001 | R37: -49.46181763 | S37: -50.96815423 | T37: -52.52036562 | U37: -54.11984888 | V37: -55.76804365 | W37: -57.46643343 | X37: -59.21654688 | Y37: -61.01995922 | Z37: -62.87829364 | AA37: -64.79322276
A38: =$B$2*0.65 -> 52 | B38: 4800 | C38: 4760.079893 | D38: 4720.319285 | E38: 4680.729769 | F38: 4641.408835 | G38: 4602.586834 | H38: 4564.541829 | I38: 4527.506745 | J38: 4491.635103 | K38: 4457.005347 | L38: 4423.638304 | P38: =$B$2*0.65 -> 52 | Q38: -52.00000002 | R38: -53.58363577 | S38: -55.21550042 | T38: -56.89706275 | U38: -58.62983628 | V38: -60.41538062 | W38: -62.25530288 | X38: -64.15125912 | Y38: -66.10495582 | Z38: -68.11815144 | AA38: -70.19265799
A39: =$B$2*0.7 -> 56 | B39: 4400 | C39: 4360.079894 | D39: 4320.321311 | E39: 4280.802075 | F39: 4241.865796 | G39: 4204.007779 | H39: 4167.620789 | I39: 4132.91655 | J39: 4099.957703 | K39: 4068.710513 | L39: 4039.08727 | P39: =$B$2*0.7 -> 56 | Q39: -56.00000002 | R39: -57.7054539 | S39: -59.46284661 | T39: -61.27375989 | U39: -63.13982369 | V39: -65.06271759 | W39: -67.04417233 | X39: -69.08597136 | Y39: -71.18995242 | Z39: -73.35800924 | AA39: -75.59209322
A40: =$B$2*0.75 -> 60 | B40: 4000 | C40: 3960.079899 | D40: 3920.341071 | E40: 3881.141769 | F40: 3843.346189 | G40: 3807.681267 | H40: 3774.459672 | I40: 3743.689296 | J40: 3715.219186 | K40: 3688.834046 | L40: 3664.304541 | P40: =$B$2*0.75 -> 60 | Q40: -60.00000002 | R40: -61.82727204 | S40: -63.71019279 | T40: -65.65045702 | U40: -67.64981109 | V40: -69.71005456 | W40: -71.83304179 | X40: -74.0206836 | Y40: -76.27494902 | Z40: -78.59786704 | AA40: -80.99152845
A41: =$B$2*0.8 -> 64 | B41: 3600 | C41: 3560.080128 | D41: 3520.473109 | E41: 3482.379187 | F41: 3447.307138 | G41: 3415.830689 | H41: 3387.833785 | I41: 3362.927605 | J41: 3340.666552 | K41: 3320.633714 | L41: 3302.467174 | P41: =$B$2*0.8 -> 64 | Q41: -64.00000002 | R41: -65.94909017 | S41: -67.95753898 | T41: -70.02715416 | U41: -72.1597985 | V41: -74.35739153 | W41: -76.62191124 | X41: -78.95539584 | Y41: -81.35994562 | Z41: -83.83772485 | AA41: -86.39096368
A42: =$B$2*0.85 -> 68 | B42: 3200 | C42: 3160.084923 | D42: 3121.115202 | E42: 3086.022409 | F42: 3056.34079 | G42: 3031.74482 | H42: 3011.357233 | I42: 2994.307729 | J42: 2979.873146 | K42: 2967.484711 | L42: 2956.702488 | P42: =$B$2*0.85 -> 68 | Q42: -68.00000002 | R42: -70.07090831 | S42: -72.20488517 | T42: -74.40385129 | U42: -76.66978591 | V42: -79.00472851 | W42: -81.41078069 | X42: -83.89010808 | Y42: -86.44494222 | Z42: -89.07758265 | AA42: -91.79039892
A43: =$B$2*0.9 -> 72 | B43: 2800 | C43: 2760.144086 | D43: 2723.50268 | E43: 2694.98881 | F43: 2674.35698 | G43: 2659.668431 | H43: 2649.214354 | I43: 2641.751779 | J43: 2636.41035 | K43: 2632.580549 | L43: 2629.830676 | P43: =$B$2*0.9 -> 72 | Q43: -72.00000002 | R43: -74.19272644 | S43: -76.45223135 | T43: -78.78054843 | U43: -81.17977331 | V43: -83.65206548 | W43: -86.19965014 | X43: -88.82482032 | Y43: -91.52993882 | Z43: -94.31744045 | AA43: -97.18983415
A44: =$B$2*0.95 -> 76 | B44: 2400 | C44: 2360.608745 | D44: 2330.572158 | E44: 2313.95268 | F44: 2306.440577 | G44: 2304.437947 | H44: 2305.744583 | I44: 2309.041597 | J44: 2313.520154 | K44: 2318.670278 | L44: 2324.162519 | P44: =$B$2*0.95 -> 76 | Q44: -76.00000002 | R44: -78.31454458 | S44: -80.69957754 | T44: -83.15724556 | U44: -85.68976072 | V44: -88.29940245 | W44: -90.9885196 | X44: -93.75953256 | Y44: -96.61493542 | Z44: -99.55729826 | AA44: -102.5892694
A45: =$B$2*1 -> 80 | B45: =$B$5*GBlackScholes($N$4,$A45,$F$6,B$10,$F$5,$F$5,$F$4,$O$4)*$F$7 -> 2000 | C45: 1963.088468 | D45: 1947.818496 | E45: 1949.222282 | F45: 1958.350402 | G45: 1970.940218 | H45: 1984.977867 | I45: 1999.455636 | J45: 2013.84644 | K45: 2027.868477 | L45: 2041.371963 | P45: =$B$2*1 -> 80 | Q45: =UnderlyingForward($P45,Q$34,$B$4,$O$7) -> -80.00000002 | R45: -82.43636272 | S45: -84.94692372 | T45: -87.5339427 | U45: -90.19974813 | V45: -92.94673942 | W45: -95.77738905 | X45: -98.6942448 | Y45: -101.699932 | Z45: -104.7971561 | AA45: -107.9887046
A46: =$B$2*1.05 -> 84 | B46: 1600 | C46: 1572.591979 | D46: 1583.492349 | E46: 1608.030565 | F46: 1635.772141 | G46: 1663.528842 | H46: 1690.221426 | I46: 1715.492192 | J46: 1739.259455 | K46: 1761.552748 | L46: 1782.445686 | P46: =$B$2*1.05 -> 84 | Q46: -84.00000003 | R46: -86.55818085 | S46: -89.19426991 | T46: -91.91063983 | U46: -94.70973553 | V46: -97.59407639 | W46: -100.5662585 | X46: -103.628957 | Y46: -106.7849286 | Z46: -110.0370139 | AA46: -113.3881398
A47: =$B$2*1.1 -> 88 | B47: 1200 | C47: 1200.030048 | D47: 1247.619075 | E47: 1297.397964 | F47: 1343.529875 | G47: 1385.533323 | H47: 1423.771127 | I47: 1458.711976 | J47: 1490.782813 | K47: 1520.345064 | L47: 1547.699358 | P47: =$B$2*1.1 -> 88 | Q47: -88.00000003 | R47: -90.67999899 | S47: -93.4416161 | T47: -96.28733697 | U47: -99.21972294 | V47: -102.2414134 | W47: -105.355128 | X47: -108.5636693 | Y47: -111.8699252 | Z47: -115.2768717 | AA47: -118.7875751
A48: =$B$2*1.15 -> 92 | B48: 799.9999996 | C48: 862.278956 | D48: 949.9567103 | E48: 1022.928051 | F48: 1084.961301 | G48: 1138.952927 | H48: 1186.779369 | I48: 1229.702747 | J48: 1268.612545 | K48: 1304.161289 | L48: 1336.843701 | P48: =$B$2*1.15 -> 92 | Q48: -92.00000003 | R48: -94.80181712 | S48: -97.68896228 | T48: -100.6640341 | U48: -103.7297103 | V48: -106.8887503 | W48: -110.1439974 | X48: -113.4983815 | Y48: -116.9549218 | Z48: -120.5167295 | AA48: -124.1870103
A49: =$B$2*1.2 -> 96 | B49: 399.9999996 | C49: 577.5479427 | D49: 697.686499 | E49: 787.9132956 | F49: 861.586898 | G49: 924.3659112 | H49: 979.2726299 | I49: 1028.146498 | J49: 1072.205983 | K49: 1112.307829 | L49: 1149.081801 | P49: =$B$2*1.2 -> 96 | Q49: -96.00000003 | R49: -98.92363526 | S49: -101.9363085 | T49: -105.0407312 | U49: -108.2396978 | V49: -111.5360873 | W49: -114.9328669 | X49: -118.4330938 | Y49: -122.0399184 | Z49: -125.7565873 | AA49: -129.5864455
A50: =$B$2*1.25 -> 100 | B50: 0.03784678783 | C50: 357.9481204 | D50: 493.8101677 | E50: 592.9766248 | F50: 673.1004952 | G50: 741.0307811 | H50: 800.2856076 | I50: 852.9581397 | J50: 900.4142792 | K50: 943.6042258 | L50: 983.2208562 | P50: =$B$2*1.25 -> 100 | Q50: -100 | R50: -103.0454534 | S50: -106.1836547 | T50: -109.4174284 | U50: -112.7496852 | V50: -116.1834243 | W50: -119.7217363 | X50: -123.367806 | Y50: -127.124915 | Z50: -130.9964451 | AA50: -134.9858808
A51: =$B$2*1.3 -> 104 | B51: 0 | C51: 204.4345855 | D51: 336.818363 | E51: 436.2613767 | F51: 517.6228163 | G51: 587.1230339 | H51: 648.067581 | I51: 702.4624836 | J51: 751.6340444 | K51: 796.5135829 | L51: 837.7849953 | P51: =$B$2*1.3 -> 104 | Q51: -104 | R51: -107.1672715 | S51: -110.4310008 | T51: -113.7941255 | U51: -117.2596726 | V51: -120.8307612 | W51: -124.5106058 | X51: -128.3025182 | Y51: -132.2099116 | Z51: -136.2363029 | AA51: -140.385316
A52: =$B$2*1.35 -> 108 | B52: 0 | C52: 107.4711844 | D52: 221.550192 | E52: 314.016054 | F52: 392.1141543 | G52: 460.040794 | H52: 520.3176066 | I52: 574.5806348 | J52: 623.9584735 | K52: 669.2673432 | L52: 711.1197981 | P52: =$B$2*1.35 -> 108 | Q52: -108 | R52: -111.2890897 | S52: -114.678347 | T52: -118.1708226 | U52: -121.76966 | V52: -125.4780982 | W52: -129.2994752 | X52: -133.2372305 | Y52: -137.2949082 | Z52: -141.4761607 | AA52: -145.7847512
A53: =$B$2*1.4 -> 112 | B53: 0 | C53: 52.0659468 | D53: 140.7105525 | E53: 221.3526023 | F53: 292.8377127 | G53: 356.7200535 | H53: 414.4137682 | I53: 467.004404 | J53: 515.3144167 | K53: 559.9756652 | L53: 601.482874 | P53: =$B$2*1.4 -> 112 | Q53: -112 | R53: -115.4109078 | S53: -118.9256932 | T53: -122.5475198 | U53: -126.2796474 | V53: -130.1254352 | W53: -134.0883447 | X53: -138.1719427 | Y53: -142.3799048 | Z53: -146.7160185 | AA53: -151.1841864
A54: =$B$2*1.45 -> 116 | B54: 0 | C54: 23.31197061 | D54: 86.42856481 | E54: 152.9791917 | F54: 215.7881508 | G54: 273.9168842 | H54: 327.6132685 | I54: 377.345446 | J54: 423.5775928 | K54: 466.7188409 | L54: 507.117904 | P54: =$B$2*1.45 -> 116 | Q54: -116 | R54: -119.5327259 | S54: -123.1730394 | T54: -126.9242169 | U54: -130.7896348 | V54: -134.7727722 | W54: -138.8772141 | X54: -143.106655 | Y54: -147.4649014 | Z54: -151.9558763 | AA54: -156.5836217
A55: =$B$2*1.5 -> 120 | B55: 0 | C55: 9.684199835 | D55: 51.43537783 | E55: 103.7798847 | F55: 157.0339297 | G55: 208.4326777 | H55: 257.2113593 | I55: 303.2529631 | J55: 346.6628775 | K55: 387.6184077 | L55: 426.3118023 | P55: =$B$2*1.5 -> 120 | Q55: -120 | R55: -123.6545441 | S55: -127.4203856 | T55: -131.300914 | U55: -135.2996222 | V55: -139.4201091 | W55: -143.6660836 | X55: -148.0413672 | Y55: -152.549898 | Z55: -157.1957341 | AA55: -161.9830569
B56: OPTION 3
G57: Maturity (T)
A58: ulg Price (S) | B58: 0 | C58: 0.1 | D58: 0.2 | E58: 0.3 | F58: 0.4 | G58: 0.5 | H58: 0.6 | I58: 0.7 | J58: 0.8 | K58: 0.9 | L58: 1
A59: =$B$2*0.5 -> 40 | B59: =$B$5*GBlackScholes($N$5,$A59,$G$6,B$10,$G$5,$G$5,$G$4,$O$5)*$G$7 -> -6499.999999 | C59: -6447.631032 | D59: -6395.523264 | E59: -6343.677505 | F59: -6292.12205 | G59: -6240.962739 | H59: -6190.380129 | I59: -6140.575601 | J59: -6091.724596 | K59: -6043.956011 | L59: -5997.350426
A60: =$B$2*0.55 -> 44 | B60: -6099.999999 | C60: -6047.631032 | D60: -5995.523433 | E60: -5943.691549 | F60: -5892.257739 | G60: -5841.507893 | H60: -5791.782643 | I60: -5743.362885 | J60: -5696.429427 | K60: -5651.070013 | L60: -5607.301867
A61: =$B$2*0.6 -> 48 | B61: -5699.999999 | C61: -5647.631032 | D61: -5595.525333 | E61: -5543.763632 | F61: -5492.725844 | G61: -5442.985775 | H61: -5395.016086 | I61: -5349.082265 | J61: -5305.271603 | K61: -5263.552803 | L61: -5223.826286
A62: =$B$2*0.65 -> 52 | B62: -5299.999999 | C62: -5247.631034 | D62: -5195.539616 | E62: -5144.046056 | F62: -5094.043263 | G62: -5046.389021 | H62: -5001.522891 | I62: -4959.52833 | J62: -4920.282533 | K62: -4883.566811 | L62: -4849.130552
A63: =$B$2*0.7 -> 56 | B63: -4899.999999 | C63: -4847.631106 | D63: -4795.617131 | E63: -4744.934876 | F63: -4697.187565 | G63: -4653.257738 | H63: -4613.255753 | I63: -4576.897573 | J63: -4543.760664 | K63: -4513.407114 | L63: -4485.433649
A64: =$B$2*0.75 -> 60 | B64: -4499.999999 | C64: -4447.632245 | D64: -4395.938839 | E64: -4347.271537 | F64: -4303.744205 | G64: -4265.702982 | H64: -4232.596871 | I64: -4203.646466 | J64: -4178.105725 | K64: -4155.337055 | L64: -4134.818331
A65: =$B$2*0.8 -> 64 | B65: -4099.999999 | C65: -4047.643812 | D65: -3997.007044 | E65: -3952.56325 | F65: -3915.970718 | G65: -3886.328157 | H65: -3862.20274 | I65: -3842.31298 | J65: -3825.648565 | K65: -3811.441819 | L65: -3799.114091
A66: =$B$2*0.85 -> 68 | B66: -3699.999999 | C66: -3647.725026 | D66: -3599.948866 | E66: -3563.142003 | F66: -3536.739348 | G66: -3518.059469 | H66: -3504.806675 | I66: -3495.334653 | J66: -3488.501944 | K66: -3483.515687 | L66: -3479.818529
A67: =$B$2*0.9 -> 72 | B67: -3299.999999 | C67: -3248.141745 | D67: -3206.867536 | E67: -3182.182323 | F67: -3169.356513 | G67: -3163.919564 | H67: -3163.015698 | I67: -3164.89005 | J67: -3168.447727 | K67: -3172.989001 | L67: -3178.056541
A68: =$B$2*0.95 -> 76 | B68: -2899.999999 | C68: -2849.778194 | D68: -2821.099321 | E68: -2813.537234 | F68: -2817.293122 | G68: -2826.787678 | H68: -2839.132707 | I68: -2852.780249 | J68: -2866.866198 | K68: -2880.893563 | L68: -2894.57199
A69: =$B$2*1 -> 80 | B69: =$B$5*GBlackScholes($N$5,$A69,$G$6,B$10,$G$5,$G$5,$G$4,$O$5)*$G$7 -> -2499.999999 | C69: -2454.889469 | D69: -2447.217038 | E69: -2461.410951 | F69: -2483.880326 | G69: -2509.185701 | H69: -2535.023958 | I69: -2560.356679 | J69: -2584.705855 | K69: -2607.860705 | L69: -2629.744417
A70: =$B$2*1.05 -> 84 | B70: -2099.999999 | C70: -2068.006173 | D70: -2090.694151 | E70: -2129.937271 | F70: -2172.027003 | G70: -2213.117417 | H70: -2252.040016 | I70: -2288.493514 | J70: -2322.487388 | K70: -2354.144253 | L70: -2383.623039
A71: =$B$2*1.1 -> 88 | B71: -1699.999999 | C71: -1696.439698 | D71: -1757.272782 | E71: -1822.754999 | F71: -1884.00209 | G71: -1939.973422 | H71: -1990.988616 | I71: -2037.597619 | J71: -2080.333461 | K71: -2119.66037 | L71: -2155.971019
A72: =$B$2*1.15 -> 92 | B72: -1299.999999 | C72: -1349.767626 | D72: -1452.194051 | E72: -1542.662837 | F72: -1621.304654 | G72: -1690.501194 | H72: -1752.151392 | I72: -1807.646626 | J72: -1858.015663 | K72: -1904.037078 | L72: -1946.314338
A73: =$B$2*1.2 -> 96 | B73: -899.9999995 | C73: -1038.136473 | D73: -1179.49356 | E73: -1291.405939 | F73: -1384.624601 | G73: -1464.830668 | H73: -1535.333233 | I73: -1598.245369 | J73: -1655.010921 | K73: -1706.66763 | L73: -1753.990983
A74: =$B$2*1.25 -> 100 | B74: -499.9999995 | C74: -769.9364464 | D74: -941.5280353 | E74: -1069.609504 | F74: -1173.881822 | G74: -1262.540857 | H74: -1339.932496 | I74: -1408.691927 | J74: -1470.561094 | K74: -1526.763377 | L74: -1578.197485
A75: =$B$2*1.3 -> 104 | B75: -99.99999947 | C75: -549.8209072 | D75: -738.8114637 | E75: -876.8434674 | F75: -988.3230524 | G75: -1082.752002 | H75: -1165.021423 | I75: -1238.046182 | J75: -1303.731134 | K75: -1363.403155 | L75: -1418.031001
A76: =$B$2*1.35 -> 108 | B76: 0 | C76: -377.8543657 | D76: -570.1452392 | E76: -711.783037 | F76: -826.6532948 | G76: -924.2291537 | H76: -1009.428226 | I76: -1085.195728 | J76: -1153.462687 | K76: -1215.577383 | L76: -1272.525942
A77: =$B$2*1.4 -> 112 | B77: 0 | C77: -249.9687388 | D77: -432.9607953 | E77: -572.4232251 | F77: -687.1806103 | G77: -785.4858928 | H77: -871.8146366 | I77: -948.9156679 | J77: -1018.621299 | K77: -1082.225989 | L77: -1140.684852
A78: =$B$2*1.45 -> 116 | B78: 0 | C78: -159.3314032 | D78: -323.7674232 | E78: -456.3087749 | F78: -567.9575438 | G78: -664.8802101 | H78: -750.7449458 | I78: -827.9204014 | J78: -898.0363833 | K78: -962.2699144 | L78: -1021.503642
A79: =$B$2*1.5 -> 120 | B79: 0 | C79: -97.98694112 | D79: -238.6067755 | E79: -360.7498625 | F79: -466.9077327 | G79: -560.6976314 | H79: -644.7444373 | I79: -720.9065962 | J79: -790.5338437 | K79: -854.6364446 | L79: -913.9915833
B80: OPTION 4
G81: Maturity (T)
A82: ulg Price (S) | B82: 0 | C82: 0.1 | D82: 0.2 | E82: 0.3 | F82: 0.4 | G82: 0.5 | H82: 0.6 | I82: 0.7 | J82: 0.8 | K82: 0.9 | L82: 1
A83: =$B$2*0.5 -> 40 | B83: =$B$5*GBlackScholes($N$6,$A83,$H$6,B$10,$H$5,$H$5,$H$4,$O$6)*$H$7 -> -6999.999999 | C83: -6934.197605 | D83: -6868.790018 | E83: -6803.83361 | F83: -6739.646679 | G83: -6676.778648 | H83: -6615.736491 | I83: -6556.84334 | J83: -6500.23992 | K83: -6445.934009 | L83: -6393.850087
A84: =$B$2*0.55 -> 44 | B84: -6599.999999 | C84: -6534.197605 | D84: -6468.797868 | E84: -6404.028362 | F84: -6340.664474 | G84: -6279.594094 | H84: -6221.371706 | I84: -6166.192201 | J84: -6114.010529 | K84: -6064.652187 | L84: -6017.885597
A85: =$B$2*0.6 -> 48 | B85: -6199.999999 | C85: -6134.197624 | D85: -6068.838997 | E85: -6004.62468 | F85: -5943.037749 | G85: -5885.160229 | H85: -5831.343347 | I85: -5781.46795 | J85: -5735.198616 | K85: -5692.13079 | L85: -5651.862294
A86: =$B$2*0.65 -> 52 | B86: -5799.999999 | C86: -5734.197908 | D86: -5669.00403 | E86: -5606.151109 | F86: -5547.874937 | G86: -5495.042295 | H86: -5447.478678 | I86: -5404.590867 | J86: -5365.696407 | K86: -5330.155715 | L86: -5297.413359
A87: =$B$2*0.7 -> 56 | B87: -5399.999999 | C87: -5334.200681 | D87: -5269.537197 | E87: -5209.530515 | F87: -5156.717405 | G87: -5111.12685 | H87: -5071.769171 | I87: -5037.498573 | J87: -5007.296122 | K87: -4980.327294 | L87: -4955.928583
A88: =$B$2*0.75 -> 60 | B88: -4999.999999 | C88: -4934.219757 | D88: -4870.978408 | E88: -4816.172441 | F88: -4771.503071 | G88: -4735.510156 | H88: -4706.240053 | I88: -4682.028684 | J88: -4661.598951 | K88: -4643.998389 | L88: -4628.519496
A89: =$B$2*0.8 -> 64 | B89: -4599.999999 | C89: -4534.317634 | D89: -4474.337728 | E89: -4427.99959 | F89: -4394.467416 | G89: -4370.36206 | H89: -4352.826402 | I89: -4339.825005 | J89: -4329.953771 | K89: -4322.241932 | L89: -4316.010269
A90: =$B$2*0.85 -> 68 | B90: -4199.999999 | C90: -4134.709942 | D90: -4081.253647 | E90: -4047.390956 | F90: -4028.000948 | G90: -4017.788205 | H90: -4013.270095 | I90: -4012.272342 | J90: -4013.424133 | K90: -4015.842676 | L90: -4018.947501
A91: =$B$2*0.9 -> 72 | B91: -3799.999999 | C91: -3735.985318 | D91: -3694.074619 | E91: -3677.046892 | F91: -3674.488748 | G91: -3679.70873 | H91: -3689.044915 | I91: -3700.459638 | J91: -3712.77909 | K91: -3725.307026 | L91: -3737.622501
A92: =$B$2*0.95 -> 76 | B92: -3399.999999 | C92: -3339.453516 | D92: -3315.817549 | E92: -3319.800314 | F92: -3336.156764 | G92: -3357.764743 | H92: -3381.311315 | I92: -3405.167835 | J92: -3428.502293 | K92: -3450.885111 | L92: -3472.100814
A93: =$B$2*1 -> 80 | B93: =$B$5*GBlackScholes($N$6,$A93,$H$6,B$10,$H$5,$H$5,$H$4,$O$6)*$H$7 -> -2999.999999 | C93: -2947.547028 | D93: -2949.991486 | E93: -2978.40771 | F93: -3014.943579 | G93: -3053.257184 | H93: -3090.898318 | I93: -3126.877315 | J93: -3160.813836 | K93: -3192.600184 | L93: -3222.255008
A94: =$B$2*1.05 -> 84 | B94: -2599.999999 | C94: -2564.106967 | D94: -2600.314022 | E94: -2655.35315 | F94: -2712.408506 | G94: -2767.117385 | H94: -2818.307781 | I94: -2865.78943 | J94: -2909.699952 | K94: -2950.281445 | L94: -2987.79784
A95: =$B$2*1.1 -> 88 | B95: -2199.999999 | C95: -2194.359819 | D95: -2270.375765 | E95: -2352.69073 | F95: -2429.679337 | G95: -2499.905163 | H95: -2563.735401 | I95: -2621.857105 | J95: -2674.946652 | K95: -2723.597483 | L95: -2768.313931
A96: =$B$2*1.15 -> 92 | B96: -1799.999999 | C96: -1844.480208 | D96: -1963.316723 | E96: -2071.939846 | F96: -2167.437236 | G96: -2251.828511 | H96: -2327.102956 | I96: -2394.820265 | J96: -2456.174331 | K96: -2512.088383 | L96: -2563.28879
A97: =$B$2*1.2 -> 96 | B97: -1399.999999 | C97: -1520.799244 | D97: -1681.568467 | E97: -1814.036806 | F97: -1925.932578 | G97: -2022.7785 | H97: -2108.096969 | I97: -2184.242821 | J97: -2252.871252 | K97: -2315.1953 | L97: -2372.134583
A98: =$B$2*1.25 -> 100 | B98: -999.9999993 | C98: -1228.866935 | D98: -1426.694672 | E98: -1579.337763 | F98: -1705.023809 | G98: -1812.373442 | H98: -1906.209866 | I98: -1989.548812 | J98: -2064.424569 | K98: -2132.286822 | L98: -2194.212448
A99: =$B$2*1.3 -> 104 | B99: -599.9999993 | C99: -972.6320431 | D99: -1199.338707 | E99: -1367.662618 | F99: -1504.231246 | G99: -1620.007269 | H99: -1720.780734 | I99: -1810.056122 | J99: -1890.148104 | K99: -1962.681864 | L99: -2028.851381
A100: =$B$2*1.35 -> 108 | B100: -199.9999993 | C100: -753.9468018 | D100: -999.2670315 | E100: -1178.367307 | F100: -1322.798532 | G100: -1444.898218 | H100: -1551.033619 | I100: -1645.006792 | J100: -1729.306528 | K100: -1805.669088 | L100: -1875.363911
A101: =$B$2*1.4 -> 112 | B101: 0 | C101: -572.479657 | D101: -825.4846748 | E101: -1010.432056 | F101: -1159.755821 | G101: -1286.135004 | H101: -1396.112116 | I101: -1493.593467 | J101: -1581.135896 | K101: -1660.523023 | L101: -1733.058844
A102: =$B$2*1.45 -> 116 | B102: 0 | C102: -425.9913488 | D102: -676.3943803 | E102: -862.5548519 | F102: -1013.980311 | G102: -1142.718654 | H102: -1255.109568 | I102: -1354.981851 | J102: -1444.860684 | K102: -1526.51717 | L102: -1601.25143
A103: =$B$2*1.5 -> 120 | B103: 0 | C103: -310.8464072 | D103: -549.9724298 | E103: -733.2418743 | F103: -884.2511607 | G103: -1013.598981 | H103: -1127.094648 | I103: -1228.32929 | J103: -1319.707609 | K103: -1402.934423 | L103: -1479.271266

Sheet Option Charts 1-2

Sheet Option Charts 3-4

Sheet Strategy Sum Chart
